bitfinex/quotes_BTCUSD_20251208
["timestamp","ask_amount","ask_price","bid_price","bid_amount"]
[1765185510726,0.3831833,92030.0,92029.0,0.00011421]
[1765185510929,0.44570629,92030.0,92029.0,0.00011421]
[1765185512454,0.44732275,92030.0,92029.0,0.00011421]
[1765185515572,0.28971976,92030.0,92029.0,0.00011421]
[1765185515805,0.38479976,92030.0,92029.0,0.00011421]
[1765185516006,0.44732275,92030.0,92029.0,0.00011421]
[1765185516370,0.55702781,92030.0,92029.0,0.00011421]
[1765185516572,0.44732275,92030.0,92029.0,0.00011421]
[1765185517230,0.44732275,92030.0,91995.0,0.05806605]
[1765185517231,0.21738894,92001.0,91995.0,0.05806605]
[1765185517434,0.21738894,92001.0,91988.0,0.01087098]
[1765185517435,0.0108698,91998.0,91996.0,0.0172]
[1765185517592,0.0108698,91998.0,91993.0,0.08018221]
[1765185517593,0.01087003,91996.0,91991.0,0.05806605]
[1765185517797,0.21740784,91993.0,91992.0,0.0172]
[1765185518238,0.22827372,91995.0,91992.0,0.0172]
[1765185518419,0.22827372,91995.0,91992.0,0.02807051]
[1765185518420,0.01087015,91995.0,91992.0,0.02807051]
[1765185519102,0.01087015,91995.0,91993.0,0.0172]
[1765185519551,0.21740548,91994.0,91993.0,0.0172]
[1765185519706,0.28157548,91994.0,91993.0,0.0172]
[1765185521019,0.28157548,91994.0,91993.0,0.0182]
[1765185521227,0.28457548,91994.0,91993.0,0.0182]
[1765185521605,0.003,91994.0,91993.0,0.23560784]
[1765185521827,0.003,91994.0,91993.0,0.257724]
[1765185522044,0.003,91994.0,91993.0,0.411474]
[1765185523799,0.003,91994.0,91993.0,0.317204]
[1765185524343,0.003,91994.0,91993.0,0.411474]
[1765185524659,0.003,91994.0,91993.0,0.317204]
[1765185525030,0.003,91994.0,91993.0,0.257724]
[1765185525577,0.003,91994.0,91993.0,0.04031616]
[1765185525725,0.22040548,91994.0,91993.0,0.02311616]
[1765185525930,0.27793548,91994.0,91993.0,0.04031616]
[1765185526130,0.37104548,91994.0,91993.0,0.02311616]
[1765185526349,0.37104548,91994.0,91993.0,0.0182]
[1765185526757,0.06053,91994.0,91993.0,0.0182]
[1765185527157,0.06053,91994.0,91993.0,0.23560784]
[1765185527332,0.003,91994.0,91993.0,0.23560784]
[1765185528132,0.003,91994.0,91993.0,0.0182]
[1765185528382,0.22040548,91994.0,91993.0,0.0182]
[1765185528860,0.27954835,91994.0,91993.0,0.001]
[1765185529036,0.37265835,91994.0,91993.0,0.001]
[1765185529443,0.27954835,91994.0,91993.0,0.001]
[1765185529619,0.36992835,91994.0,91993.0,0.001]
[1765185530019,0.27954835,91994.0,91993.0,0.001]
[1765185530223,0.43245134,91994.0,91993.0,0.001]
[1765185530410,0.5421564,91994.0,91993.0,0.001]
[1765185530610,0.43245134,91994.0,91993.0,0.001]
[1765185531395,0.21742911,91984.0,91983.0,0.0172]
[1765185531595,0.24569911,91984.0,91983.0,0.0172]
[1765185531814,0.33607911,91984.0,91983.0,0.0172]
[1765185532431,0.21743148,91983.0,91973.0,0.01087275]
[1765185532626,0.36400148,91983.0,91979.0,0.0172]
[1765185533263,0.42652447,91983.0,91975.0,0.0172]
[1765185534822,0.42652447,91983.0,91982.0,0.0012321]
[1765185535295,0.43152447,91983.0,91982.0,0.0002321]
[1765185535493,0.43252447,91983.0,91982.0,0.0002321]
[1765185535863,0.27962148,91983.0,91982.0,0.0002321]
[1765185536063,0.22343148,91983.0,91982.0,0.0002321]
[1765185536251,0.006,91983.0,91982.0,0.0002321]
[1765185536652,0.005,91983.0,91982.0,0.21766594]
[1765185536887,0.005,91983.0,91982.0,0.38395322]
[1765185537521,0.005,91983.0,91982.0,0.29294322]
[1765185537932,0.01086991,91997.0,91992.0,0.01087051]
[1765185538108,0.09038,92005.0,91983.0,0.21743148]
[1765185538109,0.22830135,92001.0,92000.0,0.02211616]
[1765185540186,0.01091173,92001.0,92000.0,0.02211616]
[1765185540628,4.229e-05,92001.0,92000.0,0.02211616]
[1765185540855,4.229e-05,92001.0,91997.0,0.01086991]
[1765185540856,0.36289067,92001.0,91997.0,0.01086991]
[1765185541031,0.21739247,92000.0,91998.0,0.02211616]
[1765185541236,0.21739366,91999.0,91998.0,0.02211616]
[1765185541432,0.27646366,91999.0,91998.0,0.02211616]
[1765185541629,0.36208366,91999.0,91998.0,0.02211616]
[1765185542253,0.36208366,91999.0,91998.0,0.03931616]
[1765185542648,0.36308366,91999.0,91998.0,0.03931616]
[1765185543049,0.001,91999.0,91998.0,0.0172]
[1765185543253,0.001,91999.0,91998.0,0.25671219]
[1765185543469,0.001,91999.0,91998.0,0.03931616]
[1765185543817,0.001,91999.0,91997.0,0.02211616]
[1765185543818,0.0108698,91998.0,91997.0,0.02211616]
[1765185543990,0.26478583,91998.0,91997.0,0.03931616]
[1765185544167,0.35040583,91998.0,91997.0,0.03931616]
[1765185544369,0.01087039,91993.0,91989.0,0.01627728]
[1765185544572,0.1008,91990.0,91989.0,0.01627728]
[1765185544759,0.1008,91990.0,91989.0,0.25089417]
[1765185544954,0.04173,91990.0,91989.0,0.25089417]
[1765185545759,0.01087015,91995.0,91994.0,0.02211616]
[1765185546498,0.22827326,91995.0,91994.0,0.02211616]
[1765185546662,0.28734326,91995.0,91994.0,0.02211616]
[1765185547247,0.2174102,91992.0,91990.0,0.00099999]
[1765185547476,0.25914257,91991.0,91989.0,0.03747728]
[1765185547672,0.25914257,91991.0,91989.0,0.03347728]
[1765185547997,0.22827828,91993.0,91989.0,0.03347728]
[1765185548197,0.01087015,91995.0,91994.0,0.02211616]
[1765185548676,0.01087015,91995.0,91992.0,0.02211616]
[1765185548895,0.22827326,91995.0,91994.0,0.02211616]
[1765185549119,0.01087015,91995.0,91994.0,0.02211616]
[1765185549319,0.21740126,91996.0,91993.0,0.01087039]
[1765185549606,0.22826858,91997.0,91996.0,0.02211616]
[1765185549787,0.28733858,91997.0,91996.0,0.02211616]
[1765185549994,0.21741126,91992.0,91991.0,0.02211616]
[1765185550170,0.21741493,91990.0,91989.0,0.01827728]
[1765185550338,0.25823493,91990.0,91989.0,0.03447728]
[1765185550538,0.34385493,91990.0,91989.0,0.01727728]
[1765185550748,0.34385493,91990.0,91989.0,0.0172]
[1765185551186,0.01087133,91985.0,91982.0,0.0002321]
[1765185551401,0.30033148,91983.0,91982.0,0.0002321]
[1765185551563,0.30033148,91983.0,91982.0,0.0174321]
[1765185551763,0.38595148,91983.0,91982.0,0.0174321]
[1765185552002,0.38595148,91983.0,91982.0,0.0002321]
[1765185552179,0.38595148,91983.0,91982.0,0.0174321]
[1765185552379,0.38595148,91983.0,91982.0,0.0204321]
[1765185552850,0.38595148,91983.0,91982.0,0.0032321]
[1765185552994,0.38595148,91983.0,91982.0,0.0042321]
[1765185553991,0.38595148,91983.0,91982.0,0.0012321]
[1765185554186,0.22828921,91989.0,91982.0,0.0012321]
[1765185554187,0.02920801,92022.0,92000.0,2.9804913]
[1765185554385,0.04503747,92029.0,92000.0,1.90976556]
[1765185554656,0.13604747,92029.0,92000.0,2.05083677]
[1765185554843,0.04345,92019.0,92000.0,1.97341806]
[1765185555050,0.13604747,92029.0,92000.0,2.0060445]
[1765185555206,0.04503747,92029.0,92000.0,5.7688445]
[1765185555408,0.04503747,92029.0,92000.0,5.7708445]
[1765185555606,0.04503747,92029.0,92000.0,5.7758445]
[1765185555944,0.04503747,92029.0,92000.0,5.7738445]
[1765185556149,0.00158747,92029.0,92000.0,5.7758445]
[1765185556375,2.29e-06,92001.0,92000.0,5.7758445]
[1765185556511,0.00158747,92029.0,92000.0,5.7758445]
[1765185556512,0.00158747,92029.0,92028.0,0.23944132]
[1765185556710,0.00170447,92029.0,92028.0,0.75234132]
[1765185557549,0.00770447,92029.0,92028.0,0.75234132]
[1765185557953,0.00170447,92029.0,92028.0,0.75234132]
[1765185558149,0.00170447,92029.0,92028.0,0.79391153]
[1765185558355,0.00170447,92029.0,92028.0,0.79691153]
[1765185558555,0.00170447,92029.0,92028.0,0.7746186]
[1765185560648,0.00170447,92029.0,92028.0,0.80723823]
[1765185566684,0.00170447,92029.0,92028.0,5.80723823]
[1765185566931,0.00170447,92029.0,92028.0,5.82850909]
[1765185567063,0.00170447,92029.0,92028.0,1.37573823]
[1765185567477,0.00170447,92029.0,92028.0,1.35853823]
[1765185567739,0.00170447,92029.0,92028.0,3.87298246]
[1765185567941,0.00170447,92029.0,92028.0,3.8508663]
[1765185568230,0.00170447,92029.0,92028.0,3.05818246]
[1765185568453,0.00170447,92029.0,92028.0,1.06398246]
[1765185569431,0.00170447,92029.0,92028.0,1.02553823]
[1765185575685,0.00170447,92029.0,92028.0,1.00833823]
[1765185575891,0.00170447,92029.0,92028.0,2.85113823]
[1765185576435,0.00170447,92029.0,92028.0,0.27222207]
[1765185576657,0.10604447,92029.0,92028.0,0.25680244]
[1765185577276,0.04515447,92029.0,92028.0,0.25380244]
[1765185578191,0.04715447,92029.0,92028.0,0.25380244]
[1765185578393,0.04715447,92029.0,92028.0,0.2759186]
[1765185578832,0.04715447,92029.0,92028.0,0.2729186]
[1765185579168,0.04715447,92029.0,92028.0,0.2749186]
[1765185579573,0.10804447,92029.0,92028.0,0.0192]
[1765185579789,0.41637727,92029.0,92028.0,0.0192]
[1765185580384,0.41637727,92029.0,92028.0,0.002]
[1765185580619,0.41637727,92029.0,92028.0,0.0192]
[1765185580975,0.41799014,92029.0,92028.0,0.0192]
[1765185583534,0.41799014,92029.0,92028.0,0.002]
[1765185583724,0.41799014,92029.0,92028.0,0.0192]
[1765185584857,0.41599014,92029.0,92028.0,0.0172]
[1765185585032,0.41999014,92029.0,92028.0,0.0172]
[1765185585245,0.41999014,92029.0,92028.0,0.0182]
[1765185589517,0.20266734,92029.0,92028.0,0.0182]
[1765185589790,0.22464014,92029.0,92028.0,0.04031616]
[1765185589996,0.00731734,92029.0,92028.0,0.04031616]
[1765185590862,0.28290014,92029.0,92028.0,0.04031616]
[1765185591062,0.06557734,92029.0,92028.0,0.04031616]
[1765185591265,0.00570447,92029.0,92028.0,0.31180132]
[1765185591470,0.00570447,92029.0,92028.0,0.3280786]
[1765185592482,0.00570447,92029.0,92028.0,0.2739186]
[1765185592679,0.00570447,92029.0,92028.0,0.05659344]
[1765185593118,0.22302727,92029.0,92028.0,0.05659344]
[1765185593677,0.00570447,92029.0,92028.0,0.2739186]
[1765185593877,0.00570447,92029.0,92028.0,0.05659344]
[1765185594678,0.00570447,92029.0,92028.0,0.2739186]
[1765185597734,0.00570447,92029.0,92028.0,0.05659344]
[1765185597941,0.22302727,92029.0,92028.0,0.05659344]
[1765185598249,0.36520727,92029.0,92028.0,0.03447728]
[1765185600181,0.36682014,92029.0,92028.0,0.01727728]
[1765185600323,0.36682014,92029.0,92028.0,0.03447728]
[1765185600724,0.36682014,92029.0,92028.0,0.001]
[1765185600926,0.42934313,92029.0,92028.0,0.001]
[1765185601960,0.06252299,92020.0,92019.0,0.02211616]
[1765185602128,0.28647125,92020.0,92019.0,0.02211616]
[1765185602328,0.05826,92020.0,92019.0,0.02211616]
[1765185602533,0.05826,92020.0,92019.0,0.23946257]
[1765185602737,0.22819718,92026.0,92025.0,0.02211616]
[1765185603204,0.01418348,92029.0,92027.0,0.21732698]
[1765185603492,0.01418348,92029.0,92028.0,0.03931616]
[1765185603493,0.00331734,92029.0,92028.0,0.03931616]
[1765185603731,0.00331734,92029.0,92028.0,0.25664132]
[1765185603914,0.00170447,92029.0,92028.0,0.03931616]
[1765185604078,0.21902727,92029.0,92028.0,0.03931616]
[1765185605019,0.22002727,92029.0,92028.0,0.03931616]
[1765185605451,0.00570447,92029.0,92028.0,0.03931616]
[1765185605866,0.00270447,92029.0,92028.0,0.28868516]
[1765185606071,0.00270447,92029.0,92028.0,0.71406132]
[1765185606072,0.00570447,92029.0,92028.0,0.71406132]
[1765185606208,0.00570447,92029.0,92028.0,5.71406132]
[1765185606544,0.00570447,92029.0,92028.0,0.69194516]
[1765185606691,0.00470447,92029.0,92028.0,5.69194516]
[1765185606891,0.00170447,92029.0,92028.0,3.10626132]
[1765185607108,0.00170447,92029.0,92028.0,3.10926132]
[1765185607315,0.00170447,92029.0,92028.0,3.11326132]
[1765185607758,0.00170447,92029.0,92028.0,5.72106132]
[1765185608194,0.00170447,92029.0,92028.0,5.7525344]
[1765185608516,0.00170447,92029.0,92028.0,0.7525344]
[1765185608723,0.00170447,92029.0,92028.0,5.7525344]
[1765185609170,0.00170447,92029.0,92028.0,5.76094318]
[1765185609171,4.47e-06,92029.0,92028.0,5.76094318]
[1765185609344,0.04037,92069.0,92068.0,0.21723074]
[1765185609682,0.040487,92069.0,92068.0,0.23443074]
[1765185610043,0.04164609,92069.0,92068.0,0.23443074]
[1765185610211,0.09298609,92069.0,92068.0,0.23443074]
[1765185610776,0.16897609,92069.0,92068.0,0.0172]
[1765185610977,0.16897609,92069.0,92056.0,0.27523672]
[1765185610978,0.21724725,92061.0,92060.0,0.03865196]
[1765185611184,0.21724725,92061.0,92044.0,0.01086436]
[1765185611185,0.01086318,92054.0,92044.0,0.01086436]
[1765185611390,0.05295287,92054.0,92046.0,0.01086413]
[1765185611563,0.04037,92053.0,92052.0,0.02211616]
[1765185612212,0.01086212,92063.0,92057.0,0.01086283]
[1765185612383,0.07842,92061.0,92058.0,0.02806271]
[1765185612585,0.07842,92061.0,92058.0,0.24531645]
[1765185612868,0.05095,92059.0,92058.0,0.02806271]
[1765185613079,0.05095,92059.0,92058.0,0.05017887]
[1765185613481,0.05095,92059.0,92058.0,0.0172]
[1765185613690,0.12937,92059.0,92058.0,0.0172]
[1765185614519,0.21726377,92054.0,92045.0,0.01086425]
[1765185614805,0.30856118,92051.0,92045.0,0.03298041]
[1765185615026,0.21727436,92050.0,92047.0,0.2172799]
[1765185615212,0.31942472,92051.0,92047.0,0.2172799]
[1765185615386,0.05095,92048.0,92047.0,0.2172799]
[1765185615588,0.05095,92048.0,92047.0,0.0172]
[1765185615871,0.21728344,92046.0,92043.0,0.01086448]
[1765185616079,0.21728344,92046.0,92044.0,0.0172]
[1765185616251,0.05095,92044.0,92043.0,0.22815249]
[1765185616512,0.01086401,92047.0,92044.0,0.01086436]
[1765185616692,0.01086377,92049.0,92047.0,0.02211616]
[1765185616864,0.003,92048.0,92047.0,0.02211616]
[1765185617067,0.05395,92048.0,92047.0,0.02211616]
[1765185618254,0.04034,92051.0,92050.0,0.21727322]
[1765185618458,0.26822794,92048.0,92047.0,0.02211616]
[1765185618661,0.05095,92048.0,92047.0,0.0172]
[1765185618837,0.34664794,92048.0,92047.0,0.0172]
[1765185619233,0.35064794,92048.0,92047.0,0.0172]
[1765185619778,0.13337,92048.0,92047.0,0.0172]
[1765185620217,0.05495,92048.0,92047.0,0.2344803]
[1765185620441,0.004,92048.0,92047.0,0.2344803]
[1765185620676,0.004,92048.0,92047.0,0.25659646]
[1765185621390,0.004,92048.0,92047.0,0.30446758]
[1765185621602,0.004,92048.0,92047.0,0.32658374]
[1765185621808,0.004,92048.0,92047.0,0.40041374]
[1765185622818,0.05134841,92069.0,92066.0,0.22809513]
[1765185623039,0.26857679,92069.0,92068.0,0.02211616]
[1765185623587,0.30982447,92069.0,92068.0,0.02211616]
[1765185623787,0.38824447,92069.0,92068.0,0.02211616]
[1765185624536,0.01086189,92065.0,92060.0,0.00099999]
[1765185624747,0.26819725,92061.0,92060.0,0.00099999]
[1765185624955,0.26819725,92061.0,92060.0,0.01819999]
[1765185625162,0.34661725,92061.0,92060.0,0.01819999]
[1765185625381,0.34661725,92061.0,92060.0,0.0172]
[1765185625813,0.14023236,92061.0,92057.0,0.01086283]
[1765185626014,0.05095,92057.0,92055.0,0.22812432]
[1765185626131,0.05095,92056.0,92055.0,0.22812432]
[1765185626334,0.05095,92056.0,92053.0,0.21726588]
[1765185626556,0.04034,92057.0,92056.0,0.21725905]
[1765185627150,0.04034,92057.0,92056.0,0.25657521]
[1765185627977,0.010862,92064.0,92056.0,0.25657521]
[1765185627978,0.22809997,92065.0,92062.0,0.22810518]
[1765185628156,0.01305829,92064.0,92060.0,0.02211616]
[1765185628363,0.26819725,92061.0,92060.0,0.02211616]
[1765185628569,0.05095,92061.0,92060.0,0.23936577]
[1765185628998,0.00161287,92065.0,92064.0,0.21724018]
[1765185629411,0.00161287,92065.0,92064.0,0.23935634]
[1765185630404,0.00261287,92065.0,92064.0,0.23935634]
[1765185630862,0.0036561,92065.0,92064.0,0.23935634]
[1765185631022,0.0536061,92065.0,92064.0,0.23935634]
[1765185631384,0.0026561,92065.0,92064.0,0.23935634]
[1765185631591,0.00104323,92065.0,92064.0,0.29306634]
[1765185631812,0.00604323,92065.0,92064.0,0.29306634]
[1765185632214,0.00704323,92065.0,92064.0,0.29306634]
[1765185633221,0.00704323,92065.0,92064.0,0.23935634]
[1765185633457,0.00704323,92065.0,92064.0,0.21724018]
[1765185633654,0.05799323,92065.0,92064.0,0.23444018]
[1765185633927,0.00704323,92065.0,92064.0,0.25655634]
[1765185634535,0.05799323,92065.0,92064.0,0.25655634]
[1765185635579,0.05799323,92065.0,92060.0,0.2182496]
[1765185635580,0.21724725,92061.0,92058.0,0.05585196]
[1765185635762,0.21724725,92061.0,92058.0,0.0172]
[1765185635763,0.30854197,92059.0,92058.0,0.0172]
[1765185635979,0.31102425,92059.0,92058.0,0.0172]
[1765185636176,0.21726932,92052.0,92050.0,0.05051561]
[1765185636378,0.21726568,92054.0,92051.0,0.21727001]
[1765185636533,0.07842,92053.0,92051.0,0.24533424]
[1765185636737,0.07842,92053.0,92052.0,0.2172685]
[1765185637101,0.12037287,92059.0,92054.0,0.01086318]
[1765185637321,0.04195287,92059.0,92058.0,0.23937049]
[1765185637526,0.00161287,92059.0,92058.0,0.23937049]
[1765185638691,0.00561287,92059.0,92058.0,0.23937049]
[1765185638892,0.004,92059.0,92058.0,0.29308049]
[1765185639096,0.004,92059.0,92058.0,0.33173245]
[1765185639372,0.004,92059.0,92058.0,0.29308049]
[1765185639703,0.004,92059.0,92058.0,0.27096433]
[1765185640111,0.13337,92059.0,92057.0,0.21725576]
[1765185640343,0.08242,92059.0,92058.0,0.0172]
[1765185640786,0.01086271,92058.0,92055.0,0.02211616]
[1765185640926,0.05095,92058.0,92056.0,0.05587062]
[1765185641127,0.05095,92058.0,92057.0,0.25592731]
[1765185641329,0.003,92059.0,92058.0,0.21725433]
[1765185641533,0.07842,92059.0,92058.0,0.03866925]
[1765185641785,0.13337,92059.0,92058.0,0.25592358]
[1765185642270,0.05095,92059.0,92058.0,0.25592358]
[1765185642434,0.05095,92059.0,92058.0,0.21725433]
[1765185642634,0.05095,92059.0,92058.0,0.05587132]
[1765185642996,0.13029,92059.0,92058.0,0.05587132]
[1765185643120,0.34915484,92059.0,92058.0,0.05587132]
[1765185643325,0.05256287,92059.0,92058.0,0.27312565]
[1765185643548,0.05256287,92059.0,92058.0,0.23445433]
[1765185643752,0.13190287,92059.0,92058.0,0.23445433]
[1765185643946,0.13590287,92059.0,92058.0,0.23445433]
[1765185644928,0.13590287,92059.0,92058.0,0.27312751]
[1765185645274,0.17431287,92059.0,92058.0,0.23445433]
[1765185645890,0.09497287,92059.0,92058.0,0.23445433]
[1765185646970,0.09584228,92059.0,92058.0,0.23445433]
[1765185647649,0.04489228,92059.0,92058.0,0.23445433]
[1765185650383,0.09932228,92059.0,92058.0,0.23445433]
[1765185652691,0.09932228,92059.0,92058.0,0.21725433]
[1765185652900,0.09932228,92059.0,92058.0,0.23445433]
[1765185654860,0.17866228,92059.0,92058.0,0.0172]
[1765185655074,0.39591425,92059.0,92058.0,0.0172]
[1765185656633,0.21725905,92056.0,92055.0,0.05797794]
[1765185656856,0.26646905,92056.0,92055.0,0.07517794]
[1765185657054,0.34659155,92056.0,92055.0,0.07517794]
[1765185657256,0.21726141,92055.0,92054.0,0.05797794]
[1765185657592,0.22813667,92051.0,92047.0,0.27525644]
[1765185657713,0.27931667,92051.0,92048.0,0.0172]
[1765185658046,0.21727558,92049.0,92048.0,0.0172]
[1765185658250,0.05443,92049.0,92048.0,0.0172]
[1765185658437,0.13377,92049.0,92048.0,0.0172]
[1765185659544,0.13577,92049.0,92048.0,0.0172]
[1765185659973,0.35304558,92049.0,92048.0,0.0172]
[1765185660179,0.13577,92049.0,92048.0,0.23447794]
[1765185660362,0.13577,92049.0,92048.0,0.0182]
[1765185660560,0.35304558,92049.0,92048.0,0.0182]
[1765185661026,0.35304558,92049.0,92048.0,0.001]
[1765185661230,0.35304558,92049.0,92048.0,0.0569465]
[1765185661434,0.35304558,92049.0,92048.0,0.0182]
[1765185663211,0.3197988,92059.0,92058.0,0.11476593]
[1765185663560,0.4494488,92059.0,92058.0,0.11476593]
[1765185665527,0.4554488,92059.0,92058.0,0.11476593]
[1765185666267,0.4574488,92059.0,92058.0,0.11476593]
[1765185670305,0.10004287,92059.0,92058.0,0.11476593]
[1765185670481,0.00961287,92059.0,92058.0,0.34922026]
[1765185670647,0.008,92059.0,92058.0,0.34922026]
[1765185671257,0.34690197,92059.0,92058.0,0.13196593]
[1765185671568,0.34890197,92059.0,92058.0,0.11476593]
[1765185671755,0.41142496,92059.0,92058.0,0.11476593]
[1765185672268,0.40942496,92059.0,92058.0,0.11476593]
[1765185672706,0.41342496,92059.0,92058.0,0.11476593]
[1765185673614,0.41542496,92059.0,92058.0,0.11476593]
[1765185673915,0.41142496,92059.0,92058.0,0.11476593]
[1765185674118,0.41503783,92059.0,92058.0,0.11476593]
[1765185674546,0.41303783,92059.0,92058.0,0.11476593]
[1765185674750,0.41803783,92059.0,92058.0,0.11476593]
[1765185678105,0.38544485,92059.0,92058.0,0.11476593]
[1765185690860,0.38544485,92059.0,92058.0,0.34922026]
[1765185690861,0.00861287,92059.0,92058.0,0.34922026]
[1765185691092,0.002,92059.0,92058.0,0.38796676]
[1765185691294,0.0370218,92063.0,92062.0,0.2172449]
[1765185693666,0.0370218,92063.0,92062.0,0.28671106]
[1765185693667,0.0012318,92063.0,92062.0,0.28671106]
[1765185693877,0.0012318,92063.0,92062.0,0.36055106]
[1765185694304,0.0002318,92063.0,92062.0,0.36055106]
[1765185694525,0.0002318,92063.0,92062.0,0.70031666]
[1765185694754,0.0002318,92063.0,92062.0,0.6959661]
[1765185694957,0.0002318,92063.0,92062.0,5.71808226]
[1765185695151,0.0002318,92063.0,92062.0,5.74489226]
[1765185695355,0.0002318,92063.0,92062.0,5.74589226]
[1765185695495,0.0002318,92063.0,92062.0,2.66449226]
[1765185695701,0.0002318,92063.0,92062.0,1.61756106]
[1765185695902,0.0002318,92063.0,92062.0,2.67096106]
[1765185696216,0.0002318,92063.0,92062.0,2.67696106]
[1765185696511,0.0002318,92063.0,92062.0,0.87556106]
[1765185696715,0.0002318,92063.0,92062.0,0.88256106]
[1765185696915,0.0002318,92063.0,92062.0,3.81336106]
[1765185697434,0.0002318,92063.0,92062.0,2.94426106]
[1765185697805,0.000117,92069.0,92068.0,5.5623469]
[1765185698002,0.000117,92069.0,92068.0,5.6096969]
[1765185698209,0.000117,92069.0,92068.0,5.70942646]
[1765185698833,0.000117,92069.0,92068.0,5.71242646]
[1765185699255,0.000117,92069.0,92068.0,4.8445369]
[1765185699459,0.000117,92069.0,92068.0,4.8107369]
[1765185699863,0.000117,92069.0,92068.0,5.6925369]
[1765185700274,0.000117,92069.0,92068.0,5.75102588]
[1765185700453,0.000117,92069.0,92068.0,5.74233632]
[1765185700656,0.000117,92069.0,92068.0,2.88312016]
[1765185700853,0.000117,92069.0,92068.0,0.7097369]
[1765185701087,0.000117,92069.0,92068.0,4.5642369]
[1765185701614,0.000117,92069.0,92068.0,4.59012646]
[1765185701909,0.000117,92069.0,92068.0,0.73262646]
[1765185702106,0.000117,92069.0,92068.0,5.73262646]
[1765185702324,1e-08,92069.0,92068.0,5.74062646]
[1765185702492,0.0002,92110.0,92068.0,5.74062646]
[1765185702493,0.0002,92110.0,92107.0,0.01085693]
[1765185702692,0.00220296,92110.0,92108.0,0.25645256]
[1765185702898,0.00220296,92110.0,92108.0,0.0172]
[1765185702899,0.0823,92109.0,92108.0,0.0172]
[1765185703215,0.21715108,92102.0,92097.0,0.21716088]
[1765185703371,0.09163,92099.0,92098.0,0.22801694]
[1765185703570,0.09163,92099.0,92098.0,0.24521694]
[1765185703856,0.09267265,92099.0,92098.0,0.24521694]
[1765185704060,0.03703265,92099.0,92098.0,0.24521694]
[1765185704258,0.00104265,92099.0,92098.0,0.2673331]
[1765185704846,0.00104265,92099.0,92098.0,0.3241731]
[1765185705156,0.00104265,92099.0,92098.0,0.4067631]
[1765185706147,0.00104265,92099.0,92098.0,0.4077631]
[1765185707050,0.00104265,92099.0,92098.0,0.2683331]
[1765185707619,0.00104265,92099.0,92098.0,0.4077631]
[1765185708210,0.00104265,92099.0,92098.0,0.4377731]
[1765185710068,0.00104265,92099.0,92098.0,0.3551831]
[1765185710426,0.00104265,92099.0,92098.0,0.2983431]
[1765185713742,0.00104265,92099.0,92098.0,0.3483531]
[1765185714062,0.00104265,92099.0,92098.0,0.2811431]
[1765185714221,0.00104265,92099.0,92098.0,0.2683331]
[1765185715968,0.00104265,92099.0,92098.0,0.22901694]
[1765185716169,0.13020265,92099.0,92098.0,0.24621694]
[1765185716942,0.05207265,92099.0,92098.0,0.24621694]
[1765185717573,0.13020265,92099.0,92098.0,0.24621694]
[1765185718019,0.05207265,92099.0,92098.0,0.24621694]
[1765185718324,0.00104265,92099.0,92098.0,0.24621694]
[1765185719278,0.00104265,92099.0,92098.0,0.27509886]
[1765185719480,0.13020265,92099.0,92098.0,0.25789886]
[1765185719680,0.13020265,92099.0,92098.0,0.27505886]
[1765185720230,0.13020265,92099.0,92098.0,0.26829413]
[1765185720456,0.13020265,92099.0,92098.0,0.01816]
[1765185720592,0.13020265,92099.0,92098.0,0.001]
[1765185720593,0.34897314,92099.0,92098.0,0.001]
[1765185720782,0.41149613,92099.0,92098.0,0.001]
[1765185721191,0.28233613,92099.0,92098.0,0.001]
[1765185721447,0.41149613,92099.0,92098.0,0.001]
[1765185722199,0.21717648,92091.0,92090.0,0.00099999]
[1765185722398,0.24360648,92091.0,92090.0,0.00099999]
[1765185722617,0.32173648,92091.0,92090.0,0.00099999]
[1765185723178,0.21718332,92090.0,92089.0,0.01716]
[1765185723376,0.07813,92090.0,92089.0,0.01716]
[1765185723749,0.34633884,92090.0,92089.0,0.01716]
[1765185724056,0.21718356,92088.0,92087.0,0.0289929]
[1765185724374,0.21718356,92088.0,92087.0,0.0461529]
[1765185724575,0.21718828,92086.0,92085.0,0.0289929]
[1765185724784,0.21718828,92086.0,92080.0,0.15332652]
[1765185724785,0.21719771,92082.0,92081.0,0.0289929]
[1765185724963,0.11355299,92081.0,92080.0,0.114778]
[1765185725160,0.19184299,92081.0,92080.0,0.114778]
[1765185726061,0.21412366,92081.0,92080.0,0.114778]
[1765185726677,0.21612366,92081.0,92080.0,0.114778]
[1765185727577,0.22112366,92081.0,92080.0,0.114778]
[1765185729182,0.22112366,92081.0,92046.0,0.01086413]
[1765185729183,0.21727322,92050.0,92045.0,0.0289929]
[1765185729388,0.21727322,92050.0,92040.0,0.4589929]
[1765185729389,0.21729446,92041.0,92040.0,0.4589929]
[1765185729616,0.25206446,92041.0,92040.0,0.4472]
[1765185729805,0.33035446,92041.0,92040.0,0.4472]
[1765185730181,0.21729446,92041.0,92040.0,0.4472]
[1765185730398,0.21728134,92047.0,92046.0,0.02211616]
[1765185730606,0.26876597,92047.0,92046.0,0.02211616]
[1765185730806,0.34705597,92047.0,92045.0,0.002]
[1765185731120,0.11306,92046.0,92045.0,0.002]
[1765185731922,8.463e-05,92047.0,92045.0,0.002]
[1765185732133,8.463e-05,92047.0,92044.0,0.22815104]
[1765185732329,0.03714,92045.0,92044.0,0.22815104]
[1765185732548,8.463e-05,92047.0,92046.0,0.21728266]
[1765185733832,8.463e-05,92047.0,92046.0,0.24439882]
[1765185734216,8.463e-05,92047.0,92046.0,0.22228266]
[1765185734348,8.463e-05,92047.0,92046.0,0.22428266]
[1765185734864,0.05330463,92047.0,92046.0,0.22428266]
[1765185735076,0.12737463,92047.0,92046.0,0.22428266]
[1765185735277,8.463e-05,92047.0,92046.0,0.22428266]
[1765185736150,8.463e-05,92047.0,92046.0,0.35177266]
[1765185736354,8.463e-05,92047.0,92046.0,0.29571882]
[1765185736559,0.03992,92059.0,92046.0,0.29571882]
[1765185736760,0.03992,92059.0,92055.0,0.2281222]
[1765185736955,0.05078259,92059.0,92056.0,0.01086295]
[1765185737982,0.12485259,92059.0,92057.0,0.21725657]
[1765185738180,0.11399,92059.0,92057.0,0.21725657]
[1765185738382,0.03992,92059.0,92058.0,0.21725433]
[1765185738938,0.09314,92059.0,92058.0,0.21725433]
[1765185740150,0.09314,92059.0,92058.0,0.21925433]
[1765185740535,0.16721,92059.0,92058.0,0.21925433]
[1765185740913,0.16721,92059.0,92058.0,0.21725433]
[1765185741304,0.16721,92059.0,92058.0,0.22025433]
[1765185741712,0.16721,92059.0,92058.0,0.22125433]
[1765185742928,0.09314,92059.0,92058.0,0.22125433]
[1765185743128,0.03992,92059.0,92058.0,0.22125433]
[1765185746062,0.03992,92065.0,92064.0,0.21724018]
[1765185746410,0.03661177,92071.0,92070.0,0.21722602]
[1765185746652,0.03661177,92071.0,92069.0,0.21722782]